[Event "Titled Tuesday Blitz May 31 Early 2022"]
[White "Stevens, Christian"]
[Black "Svane, Frederik"]
[WhiteFideId "2604450"]
[BlackFideId "12923044"]
[WhiteElo "2488"]
[BlackElo "2459"]
[Result "0-1"]
[Round "01"]
[TimeControl "180+1"]
[Date "2022.05.31"]
[WhiteClock "0:00:01"]
[BlackClock "0:00:56"]

1. d4 {[%clk 0:02:13]}  Nf6 {[%clk 0:02:59]} 2. c4 {[%clk 0:02:12]}  e6 {[%clk 0:02:58]} 3. Nc3 {[%clk 0:02:12]}  Bb4 {[%clk 0:02:58]} 4. Nf3 {[%clk 0:02:11]}  b6 {[%clk 0:02:57]} 5. Bg5 {[%clk 0:02:11]}  Bb7 {[%clk 0:02:57]} 6. Nd2 {[%clk 0:02:10]}  h6 {[%clk 0:02:56]} 7. Bh4 {[%clk 0:02:06]}  Bxc3 {[%clk 0:02:55]} 8. bxc3 {[%clk 0:02:05]}  d6 {[%clk 0:02:56]} 9. f3 {[%clk 0:02:05]}  Nbd7 {[%clk 0:02:56]} 10. e4 {[%clk 0:02:05]}  e5 {[%clk 0:02:56]} 11. c5 {[%clk 0:01:43]}  dxc5 {[%clk 0:02:53]} 12. d5 {[%clk 0:01:31]}  Qe7 {[%clk 0:02:39]} 13. Nc4 {[%clk 0:01:28]}  O-O-O {[%clk 0:02:40]} 14. a4 {[%clk 0:01:25]}  a5 {[%clk 0:02:38]} 15. Rb1 {[%clk 0:01:12]}  Nb8 {[%clk 0:02:28]} 16. Qb3 {[%clk 0:00:49]}  g5 {[%clk 0:02:24]} 17. Bg3 {[%clk 0:00:39]}  Nxd5 {[%clk 0:02:24]} 18. exd5 {[%clk 0:00:27]}  e4 {[%clk 0:02:20]} 19. d6 {[%clk 0:00:23]}  Rxd6 {[%clk 0:01:56]} 20. Bxd6 {[%clk 0:00:19]}  cxd6 {[%clk 0:01:57]} 21. Qxb6 {[%clk 0:00:18]}  exf3+ {[%clk 0:01:55]} 22. Kf2 {[%clk 0:00:15]}  Rd8 {[%clk 0:01:49]} 23. gxf3 {[%clk 0:00:10]}  g4 {[%clk 0:01:45]} 24. Bd3 {[%clk 0:00:08]}  Rd7 {[%clk 0:00:55]} 25. Bf5 {[%clk 0:00:08]}  Qh4+ {[%clk 0:00:56]} 26. Kg1 {[%clk 0:00:08]}  gxf3 {[%clk 0:00:56]} 27. Qxb7+ {[%clk 0:00:06]}  Kd8 {[%clk 0:00:56]} 28. Qxb8+ {[%clk 0:00:07]}  Ke7 {[%clk 0:00:57]} 29. Kf1 {[%clk 0:00:01]}  Qxc4+ {[%clk 0:00:56]} 30. Kf2 {[%clk 0:00:01]}  Qe2+ {[%clk 0:00:56]} 0-1


[Site "https://www.chess.com"]

[Event "Titled Tuesday Blitz May 31 Early 2022"]
[White "Svane, Rasmus"]
[Black "Bodnaruk, Anastasia"]
[WhiteFideId "4657101"]
[BlackFideId "4181751"]
[WhiteElo "2674"]
[BlackElo "2332"]
[Result "1-0"]
[Round "01"]
[TimeControl "180+1"]
[Date "2022.05.31"]
[WhiteClock "0:01:31"]
[BlackClock "0:00:03"]

1. Nf3 {[%clk 0:03:00]}  Nf6 {[%clk 0:02:59]} 2. g3 {[%clk 0:02:55]}  g6 {[%clk 0:02:58]} 3. Bg2 {[%clk 0:02:55]}  Bg7 {[%clk 0:02:58]} 4. O-O {[%clk 0:02:56]}  O-O {[%clk 0:02:58]} 5. d4 {[%clk 0:02:56]}  d5 {[%clk 0:02:58]} 6. c4 {[%clk 0:02:56]}  c6 {[%clk 0:02:58]} 7. Qb3 {[%clk 0:02:56]}  a5 {[%clk 0:02:55]} 8. Rd1 {[%clk 0:02:55]}  a4 {[%clk 0:02:53]} 9. Qb4 {[%clk 0:02:55]}  dxc4 {[%clk 0:02:42]} 10. Qxc4 {[%clk 0:02:56]}  Be6 {[%clk 0:02:39]} 11. Qb4 {[%clk 0:02:56]}  b5 {[%clk 0:02:24]} 12. Qe1 {[%clk 0:02:55]}  Qb6 {[%clk 0:02:10]} 13. e4 {[%clk 0:02:55]}  b4 {[%clk 0:02:03]} 14. h3 {[%clk 0:02:52]}  Na6 {[%clk 0:01:58]} 15. Be3 {[%clk 0:02:43]}  Qb7 {[%clk 0:01:56]} 16. Nbd2 {[%clk 0:02:41]}  h6 {[%clk 0:01:47]} 17. Qe2 {[%clk 0:02:39]}  Nc7 {[%clk 0:01:34]} 18. Ne5 {[%clk 0:02:37]}  Nd7 {[%clk 0:01:27]} 19. Nd3 {[%clk 0:02:37]}  Nb5 {[%clk 0:01:14]} 20. e5 {[%clk 0:02:26]}  Bd5 {[%clk 0:01:09]} 21. Ne4 {[%clk 0:02:27]}  Bxe4 {[%clk 0:01:03]} 22. Bxe4 {[%clk 0:02:28]}  Nc7 {[%clk 0:00:58]} 23. Rac1 {[%clk 0:02:27]}  Nd5 {[%clk 0:00:59]} 24. e6 {[%clk 0:02:24]}  fxe6 {[%clk 0:00:57]} 25. Bxg6 {[%clk 0:02:23]}  Qb5 {[%clk 0:00:38]} 26. Qg4 {[%clk 0:02:13]}  Rf6 {[%clk 0:00:38]} 27. Nf4 {[%clk 0:01:53]}  Nxf4 {[%clk 0:00:30]} 28. Bxf4 {[%clk 0:01:52]}  e5 {[%clk 0:00:26]} 29. Bd3 {[%clk 0:01:42]}  Qb7 {[%clk 0:00:22]} 30. dxe5 {[%clk 0:01:40]}  Rxf4 {[%clk 0:00:04]} 31. gxf4 {[%clk 0:01:37]}  Kh8 {[%clk 0:00:02]} 32. Kh2 {[%clk 0:01:36]}  Nf8 {[%clk 0:00:03]} 33. Rg1 {[%clk 0:01:35]}  e6 {[%clk 0:00:02]} 34. Rg3 {[%clk 0:01:32]}  Rd8 {[%clk 0:00:02]} 35. Rcg1 {[%clk 0:01:32]}  Rd7 {[%clk 0:00:03]} 36. f5 {[%clk 0:01:31]} 1-0


[Site "https://www.chess.com"]

[Event "Titled Tuesday Blitz May 31 Early 2022"]
[White "Swiercz, Dariusz"]
[Black "Melian, Juan Sebastian"]
[WhiteFideId "1126881"]
[BlackFideId "3706575"]
[WhiteElo "2627"]
[BlackElo "1851"]
[Result "0-1"]
[Round "01"]
[TimeControl "180+1"]
[Date "2022.05.31"]
[WhiteClock "0:00:03"]
[BlackClock "0:00:05"]

1. Nf3 {[%clk 0:02:54]}  d5 {[%clk 0:02:58]} 2. d4 {[%clk 0:02:54]}  c6 {[%clk 0:02:58]} 3. c4 {[%clk 0:02:53]}  Nf6 {[%clk 0:02:58]} 4. cxd5 {[%clk 0:02:54]}  cxd5 {[%clk 0:02:55]} 5. Nc3 {[%clk 0:02:54]}  Nc6 {[%clk 0:02:56]} 6. Bf4 {[%clk 0:02:55]}  e6 {[%clk 0:02:46]} 7. e3 {[%clk 0:02:54]}  Bd6 {[%clk 0:02:45]} 8. Ne5 {[%clk 0:02:51]}  O-O {[%clk 0:02:43]} 9. Bd3 {[%clk 0:02:50]}  Qc7 {[%clk 0:02:38]} 10. Nb5 {[%clk 0:02:33]}  Bb4+ {[%clk 0:02:30]} 11. Kf1 {[%clk 0:02:28]}  Qb6 {[%clk 0:02:14]} 12. Rc1 {[%clk 0:02:19]}  a6 {[%clk 0:02:07]} 13. Nc3 {[%clk 0:02:16]}  Bd7 {[%clk 0:01:45]} 14. Na4 {[%clk 0:01:58]}  Qd8 {[%clk 0:01:39]} 15. a3 {[%clk 0:01:51]}  Be7 {[%clk 0:01:12]} 16. Nc5 {[%clk 0:01:50]}  Nxe5 {[%clk 0:00:54]} 17. Bxe5 {[%clk 0:01:48]}  Bxc5 {[%clk 0:00:39]} 18. dxc5 {[%clk 0:01:42]}  Ne4 {[%clk 0:00:38]} 19. Bxe4 {[%clk 0:01:22]}  dxe4 {[%clk 0:00:39]} 20. Qg4 {[%clk 0:01:22]}  Bb5+ {[%clk 0:00:39]} 21. Kg1 {[%clk 0:01:21]}  f6 {[%clk 0:00:39]} 22. Qxe6+ {[%clk 0:01:17]}  Kh8 {[%clk 0:00:39]} 23. Bd6 {[%clk 0:01:18]}  Re8 {[%clk 0:00:39]} 24. Qf7 {[%clk 0:01:12]}  Qc8 {[%clk 0:00:35]} 25. h3 {[%clk 0:01:07]}  Qf5 {[%clk 0:00:34]} 26. Rd1 {[%clk 0:00:56]}  Bc6 {[%clk 0:00:25]} 27. Rd4 {[%clk 0:00:51]}  a5 {[%clk 0:00:19]} 28. Qc4 {[%clk 0:00:47]}  a4 {[%clk 0:00:18]} 29. Qc2 {[%clk 0:00:47]}  Ra5 {[%clk 0:00:18]} 30. f4 {[%clk 0:00:43]}  Qe6 {[%clk 0:00:13]} 31. Kh2 {[%clk 0:00:41]}  Rb5 {[%clk 0:00:14]} 32. Rc1 {[%clk 0:00:37]}  Rb3 {[%clk 0:00:14]} 33. Qd2 {[%clk 0:00:37]}  Kg8 {[%clk 0:00:12]} 34. Rc3 {[%clk 0:00:37]}  Rxc3 {[%clk 0:00:11]} 35. Qxc3 {[%clk 0:00:38]}  Kf7 {[%clk 0:00:10]} 36. Qd2 {[%clk 0:00:36]}  Kg8 {[%clk 0:00:11]} 37. g4 {[%clk 0:00:34]}  Rd8 {[%clk 0:00:11]} 38. f5 {[%clk 0:00:33]}  Qb3 {[%clk 0:00:11]} 39. Kg3 {[%clk 0:00:31]}  Rd7 {[%clk 0:00:10]} 40. h4 {[%clk 0:00:32]}  Kf7 {[%clk 0:00:09]} 41. g5 {[%clk 0:00:27]}  Qa2 {[%clk 0:00:07]} 42. Qe2 {[%clk 0:00:25]}  Qb3 {[%clk 0:00:06]} 43. Kf2 {[%clk 0:00:23]}  g6 {[%clk 0:00:05]} 44. gxf6 {[%clk 0:00:20]}  Kxf6 {[%clk 0:00:05]} 45. fxg6 {[%clk 0:00:18]}  hxg6 {[%clk 0:00:06]} 46. Kg3 {[%clk 0:00:17]}  Qe6 {[%clk 0:00:05]} 47. Rd1 {[%clk 0:00:16]}  Kg7 {[%clk 0:00:06]} 48. Rf1 {[%clk 0:00:15]}  Rf7 {[%clk 0:00:06]} 49. Rf4 {[%clk 0:00:13]}  Rxf4 {[%clk 0:00:06]} 50. Bxf4 {[%clk 0:00:13]}  Bd7 {[%clk 0:00:05]} 51. Kf2 {[%clk 0:00:12]}  Qh3 {[%clk 0:00:06]} 52. Bg3 {[%clk 0:00:11]}  Bg4 {[%clk 0:00:05]} 53. Qd2 {[%clk 0:00:10]}  Qh1 {[%clk 0:00:04]} 54. Qd4+ {[%clk 0:00:09]}  Kh7 {[%clk 0:00:04]} 55. Qe5 {[%clk 0:00:04]}  Qf3+ {[%clk 0:00:05]} 56. Kg1 {[%clk 0:00:05]}  Qd1+ {[%clk 0:00:05]} 57. Kg2 {[%clk 0:00:04]}  Bf3+ {[%clk 0:00:04]} 58. Kh3 {[%clk 0:00:03]}  Qf1+ {[%clk 0:00:04]} 59. Kh2 {[%clk 0:00:03]}  Qg2# {[%clk 0:00:05]} 0-1


[Site "https://www.chess.com"]

[Event "Titled Tuesday Blitz May 31 Early 2022"]
[White "Tanenbaum, Zachary"]
[Black "Leschinsky, Gary"]
[WhiteFideId "2060850"]
[BlackFideId "30951321"]
[WhiteElo "2168"]
[BlackElo "1782"]
[Result "1-0"]
[Round "01"]
[TimeControl "180+1"]
[Date "2022.06.01"]
[WhiteClock "0:00:11"]
[BlackClock "0:00:04"]

1. e4 {[%clk 0:02:57]}  c5 {[%clk 0:02:58]} 2. Nf3 {[%clk 0:02:58]}  e6 {[%clk 0:02:58]} 3. d4 {[%clk 0:02:58]}  cxd4 {[%clk 0:02:58]} 4. Nxd4 {[%clk 0:02:59]}  a6 {[%clk 0:02:58]} 5. Bd3 {[%clk 0:02:59]}  Bc5 {[%clk 0:02:58]} 6. Nb3 {[%clk 0:02:59]}  Ba7 {[%clk 0:02:58]} 7. O-O {[%clk 0:02:59]}  Nc6 {[%clk 0:02:58]} 8. Qg4 {[%clk 0:02:58]}  Qf6 {[%clk 0:02:54]} 9. Nc3 {[%clk 0:02:46]}  Nge7 {[%clk 0:02:50]} 10. Qg3 {[%clk 0:02:41]}  Qg6 {[%clk 0:02:21]} 11. Qh4 {[%clk 0:02:20]}  O-O {[%clk 0:02:13]} 12. Nd5 {[%clk 0:02:19]}  exd5 {[%clk 0:01:56]} 13. exd5 {[%clk 0:02:19]}  Nf5 {[%clk 0:01:56]} 14. Qh3 {[%clk 0:01:47]}  Nce7 {[%clk 0:01:43]} 15. d6 {[%clk 0:01:46]}  Qxd6 {[%clk 0:01:35]} 16. Bxf5 {[%clk 0:01:46]}  Nxf5 {[%clk 0:01:36]} 17. Qxf5 {[%clk 0:01:46]}  Qe6 {[%clk 0:01:28]} 18. Qd3 {[%clk 0:01:39]}  d5 {[%clk 0:01:21]} 19. Bf4 {[%clk 0:01:35]}  Bd7 {[%clk 0:01:03]} 20. Rfe1 {[%clk 0:01:31]}  Qg6 {[%clk 0:00:57]} 21. Qxg6 {[%clk 0:01:26]}  hxg6 {[%clk 0:00:58]} 22. Rad1 {[%clk 0:01:26]}  Bc6 {[%clk 0:00:54]} 23. Be3 {[%clk 0:01:23]}  Bb8 {[%clk 0:00:42]} 24. Bc5 {[%clk 0:01:07]}  Rc8 {[%clk 0:00:41]} 25. Re7 {[%clk 0:00:52]}  Ba4 {[%clk 0:00:19]} 26. Rxd5 {[%clk 0:00:50]}  Bxb3 {[%clk 0:00:20]} 27. axb3 {[%clk 0:00:51]}  Rxc5 {[%clk 0:00:16]} 28. Re8+ {[%clk 0:00:50]}  Kh7 {[%clk 0:00:12]} 29. Rxc5 {[%clk 0:00:45]}  Bxh2+ {[%clk 0:00:12]} 30. Kxh2 {[%clk 0:00:46]}  Rxe8 {[%clk 0:00:12]} 31. Rc7 {[%clk 0:00:47]}  Re2 {[%clk 0:00:12]} 32. Kg3 {[%clk 0:00:45]}  b5 {[%clk 0:00:12]} 33. Kf3 {[%clk 0:00:45]}  Rd2 {[%clk 0:00:12]} 34. Ke3 {[%clk 0:00:45]}  Rd1 {[%clk 0:00:13]} 35. Rxf7 {[%clk 0:00:45]}  Rb1 {[%clk 0:00:13]} 36. Kd2 {[%clk 0:00:40]}  Rxb2 {[%clk 0:00:13]} 37. Kc1 {[%clk 0:00:41]}  Ra2 {[%clk 0:00:13]} 38. Kb1 {[%clk 0:00:41]}  Ra5 {[%clk 0:00:13]} 39. Rb7 {[%clk 0:00:23]}  g5 {[%clk 0:00:11]} 40. Rb6 {[%clk 0:00:20]}  g6 {[%clk 0:00:11]} 41. Kb2 {[%clk 0:00:18]}  Kh6 {[%clk 0:00:11]} 42. g4 {[%clk 0:00:10]}  Kg7 {[%clk 0:00:11]} 43. f3 {[%clk 0:00:10]}  Kh6 {[%clk 0:00:11]} 44. c3 {[%clk 0:00:09]}  Kg7 {[%clk 0:00:10]} 45. b4 {[%clk 0:00:09]}  Ra4 {[%clk 0:00:10]} 46. Rb7+ {[%clk 0:00:09]}  Kf6 {[%clk 0:00:09]} 47. Ra7 {[%clk 0:00:09]}  Ke6 {[%clk 0:00:08]} 48. Rc7 {[%clk 0:00:08]}  Kf6 {[%clk 0:00:08]} 49. Rc5 {[%clk 0:00:08]}  a5 {[%clk 0:00:03]} 50. Rxb5 {[%clk 0:00:09]}  axb4 {[%clk 0:00:03]} 51. cxb4 {[%clk 0:00:09]}  Ra8 {[%clk 0:00:03]} 52. Rb6+ {[%clk 0:00:10]}  Kf7 {[%clk 0:00:03]} 53. Kb3 {[%clk 0:00:10]}  Rd8 {[%clk 0:00:04]} 54. Rc6 {[%clk 0:00:10]}  Rd3+ {[%clk 0:00:04]} 55. Rc3 {[%clk 0:00:11]}  Rxf3 {[%clk 0:00:04]} 56. Rxf3+ {[%clk 0:00:11]} 1-0


[Site "https://www.chess.com"]

[Event "Titled Tuesday Blitz May 31 Early 2022"]
[White "Urbina Perez, Juan Antonio"]
[Black "Sjugirov, Sanan"]
[WhiteFideId "2217368"]
[BlackFideId "4189302"]
[WhiteElo "2192"]
[BlackElo "2602"]
[Result "0-1"]
[Round "01"]
[TimeControl "180+1"]
[Date "2022.05.31"]
[WhiteClock "0:00:11"]
[BlackClock "0:00:07"]

1. e4 {[%clk 0:03:00]}  g6 {[%clk 0:02:59]} 2. d4 {[%clk 0:02:58]}  d6 {[%clk 0:02:59]} 3. Nf3 {[%clk 0:02:58]}  Nf6 {[%clk 0:02:59]} 4. Bd3 {[%clk 0:02:57]}  Bg7 {[%clk 0:02:58]} 5. O-O {[%clk 0:02:56]}  O-O {[%clk 0:02:58]} 6. h3 {[%clk 0:02:57]}  Nc6 {[%clk 0:02:57]} 7. d5 {[%clk 0:02:57]}  Nb8 {[%clk 0:02:57]} 8. c4 {[%clk 0:02:58]}  a5 {[%clk 0:02:56]} 9. Nc3 {[%clk 0:02:58]}  Na6 {[%clk 0:02:55]} 10. Be3 {[%clk 0:02:58]}  e5 {[%clk 0:02:51]} 11. dxe6 {[%clk 0:02:57]}  Bxe6 {[%clk 0:02:50]} 12. Nd5 {[%clk 0:02:55]}  Nd7 {[%clk 0:02:40]} 13. Bd4 {[%clk 0:02:54]}  Bxd5 {[%clk 0:02:36]} 14. exd5 {[%clk 0:02:48]}  Nac5 {[%clk 0:02:34]} 15. Bxg7 {[%clk 0:02:47]}  Kxg7 {[%clk 0:02:35]} 16. Bc2 {[%clk 0:02:44]}  Qf6 {[%clk 0:02:35]} 17. Qd4 {[%clk 0:02:42]}  a4 {[%clk 0:02:32]} 18. Qxf6+ {[%clk 0:02:40]}  Kxf6 {[%clk 0:02:32]} 19. Rfe1 {[%clk 0:02:39]}  Rfe8 {[%clk 0:02:21]} 20. Kf1 {[%clk 0:02:37]}  Ne5 {[%clk 0:02:18]} 21. Nxe5 {[%clk 0:02:31]}  Rxe5 {[%clk 0:02:18]} 22. Rxe5 {[%clk 0:02:29]}  dxe5 {[%clk 0:02:19]} 23. f3 {[%clk 0:02:23]}  Ke7 {[%clk 0:02:18]} 24. Ke2 {[%clk 0:02:23]}  Kd6 {[%clk 0:02:17]} 25. Kd2 {[%clk 0:02:22]}  f5 {[%clk 0:02:15]} 26. Re1 {[%clk 0:02:20]}  b5 {[%clk 0:01:43]} 27. b4 {[%clk 0:02:11]}  axb3 {[%clk 0:01:41]} 28. axb3 {[%clk 0:02:12]}  b4 {[%clk 0:01:37]} 29. Kc1 {[%clk 0:02:04]}  Ra1+ {[%clk 0:01:35]} 30. Kd2 {[%clk 0:02:04]}  Ra2 {[%clk 0:01:24]} 31. Kc1 {[%clk 0:02:02]}  Ra1+ {[%clk 0:01:23]} 32. Kd2 {[%clk 0:02:02]}  Ra3 {[%clk 0:01:24]} 33. Rb1 {[%clk 0:01:57]}  Ra2 {[%clk 0:01:23]} 34. Kc1 {[%clk 0:01:55]}  e4 {[%clk 0:01:20]} 35. fxe4 {[%clk 0:01:54]}  fxe4 {[%clk 0:01:21]} 36. Rb2 {[%clk 0:01:50]}  Rxb2 {[%clk 0:01:19]} 37. Kxb2 {[%clk 0:01:49]}  Ke5 {[%clk 0:01:20]} 38. Kc1 {[%clk 0:01:49]}  Kd4 {[%clk 0:01:14]} 39. Kd2 {[%clk 0:01:49]}  g5 {[%clk 0:01:04]} 40. g3 {[%clk 0:01:44]}  h6 {[%clk 0:01:04]} 41. h4 {[%clk 0:01:41]}  gxh4 {[%clk 0:01:01]} 42. gxh4 {[%clk 0:01:41]}  Nd7 {[%clk 0:01:00]} 43. Bd1 {[%clk 0:01:41]}  e3+ {[%clk 0:00:54]} 44. Ke2 {[%clk 0:01:39]}  Nf6 {[%clk 0:00:51]} 45. Bc2 {[%clk 0:01:36]}  Ng4 {[%clk 0:00:48]} 46. Bf5 {[%clk 0:01:34]}  Ne5 {[%clk 0:00:46]} 47. Bh7 {[%clk 0:01:30]}  Nd7 {[%clk 0:00:41]} 48. Bf5 {[%clk 0:01:26]}  Nc5 {[%clk 0:00:38]} 49. Bc2 {[%clk 0:01:26]}  Kc3 {[%clk 0:00:37]} 50. Bd1 {[%clk 0:01:26]}  Kd4 {[%clk 0:00:33]} 51. Bc2 {[%clk 0:01:26]}  Nb7 {[%clk 0:00:33]} 52. Bf5 {[%clk 0:01:24]}  Nd6 {[%clk 0:00:32]} 53. Bc2 {[%clk 0:01:18]}  Ne8 {[%clk 0:00:30]} 54. Bf5 {[%clk 0:01:13]}  Nf6 {[%clk 0:00:30]} 55. Bg6 {[%clk 0:01:11]}  Ng4 {[%clk 0:00:23]} 56. Bf5 {[%clk 0:01:09]}  Ne5 {[%clk 0:00:19]} 57. Bc2 {[%clk 0:01:09]}  Nf7 {[%clk 0:00:11]} 58. Bg6 {[%clk 0:01:07]}  Nd6 {[%clk 0:00:11]} 59. Bh7 {[%clk 0:01:01]}  Nb7 {[%clk 0:00:10]} 60. Bg6 {[%clk 0:00:59]}  Kc3 {[%clk 0:00:05]} 61. Kxe3 {[%clk 0:00:54]}  Nc5 {[%clk 0:00:06]} 62. Bh7 {[%clk 0:00:31]}  Nxb3 {[%clk 0:00:06]} 63. Ke4 {[%clk 0:00:23]}  Nc5+ {[%clk 0:00:05]} 64. Ke5 {[%clk 0:00:22]}  Kxc4 {[%clk 0:00:06]} 65. d6 {[%clk 0:00:23]}  cxd6+ {[%clk 0:00:05]} 66. Kxd6 {[%clk 0:00:23]}  b3 {[%clk 0:00:06]} 67. Ke5 {[%clk 0:00:23]}  Nd3+ {[%clk 0:00:05]} 68. Ke4 {[%clk 0:00:15]}  Kc3 {[%clk 0:00:05]} 69. Ke3 {[%clk 0:00:13]}  Ne5 {[%clk 0:00:04]} 70. Be4 {[%clk 0:00:12]}  b2 {[%clk 0:00:04]} 71. Bb1 {[%clk 0:00:11]}  Nc4+ {[%clk 0:00:04]} 72. Kf4 {[%clk 0:00:11]}  Na3 {[%clk 0:00:04]} 73. Ba2 {[%clk 0:00:10]}  Kc2 {[%clk 0:00:04]} 74. Kg4 {[%clk 0:00:10]}  Kc1 {[%clk 0:00:04]} 75. Kh5 {[%clk 0:00:10]}  Nb5 {[%clk 0:00:05]} 76. Kxh6 {[%clk 0:00:09]}  Nc3 {[%clk 0:00:06]} 77. Bb1 {[%clk 0:00:08]}  Nxb1 {[%clk 0:00:05]} 78. Kg7 {[%clk 0:00:09]}  Nc3 {[%clk 0:00:06]} 79. h5 {[%clk 0:00:10]}  b1=Q {[%clk 0:00:06]} 80. h6 {[%clk 0:00:11]}  Qb7+ {[%clk 0:00:07]} 81. Kg8 {[%clk 0:00:11]}  Nd5 {[%clk 0:00:07]} 82. h7 {[%clk 0:00:12]}  Nf6+ {[%clk 0:00:07]} 83. Kf8 {[%clk 0:00:11]}  Nxh7+ {[%clk 0:00:07]} 0-1


[Site "https://www.chess.com"]

[Event "Titled Tuesday Blitz May 31 Early 2022"]
[White "Xiong, Jeffery"]
[Black "Milosevic, Milos"]
[WhiteFideId "2047640"]
[BlackFideId "964875"]
[WhiteElo "2727"]
[BlackElo "2194"]
[Result "1-0"]
[Round "01"]
[TimeControl "180+1"]
[Date "2022.05.31"]
[WhiteClock "0:02:12"]
[BlackClock "0:01:16"]

1. c4 {[%clk 0:02:55]}  Nf6 {[%clk 0:02:59]} 2. Nc3 {[%clk 0:02:55]}  e6 {[%clk 0:02:57]} 3. e4 {[%clk 0:02:55]}  d5 {[%clk 0:02:58]} 4. e5 {[%clk 0:02:55]}  Nfd7 {[%clk 0:02:58]} 5. d4 {[%clk 0:02:53]}  dxc4 {[%clk 0:02:57]} 6. Bxc4 {[%clk 0:02:53]}  Nb6 {[%clk 0:02:57]} 7. Bd3 {[%clk 0:02:49]}  c5 {[%clk 0:02:48]} 8. dxc5 {[%clk 0:02:48]}  Bxc5 {[%clk 0:02:47]} 9. Nf3 {[%clk 0:02:48]}  Nc6 {[%clk 0:02:42]} 10. Bg5 {[%clk 0:02:44]}  Be7 {[%clk 0:02:41]} 11. Bxe7 {[%clk 0:02:33]}  Qxe7 {[%clk 0:02:41]} 12. O-O {[%clk 0:02:33]}  O-O {[%clk 0:02:41]} 13. Qe2 {[%clk 0:02:33]}  Rd8 {[%clk 0:02:39]} 14. Rfd1 {[%clk 0:02:30]}  Nb4 {[%clk 0:02:30]} 15. Bxh7+ {[%clk 0:02:29]}  Kxh7 {[%clk 0:02:27]} 16. Qe4+ {[%clk 0:02:30]}  Kg8 {[%clk 0:02:23]} 17. Rxd8+ {[%clk 0:02:30]}  Qxd8 {[%clk 0:02:24]} 18. Qxb4 {[%clk 0:02:30]}  Bd7 {[%clk 0:02:23]} 19. Rd1 {[%clk 0:02:30]}  g6 {[%clk 0:02:15]} 20. Qf4 {[%clk 0:02:27]}  Kg7 {[%clk 0:02:13]} 21. h4 {[%clk 0:02:23]}  Qe7 {[%clk 0:02:11]} 22. h5 {[%clk 0:02:23]}  Rh8 {[%clk 0:02:09]} 23. hxg6 {[%clk 0:02:20]}  fxg6 {[%clk 0:02:10]} 24. Rd6 {[%clk 0:02:14]}  Rh5 {[%clk 0:01:40]} 25. Ne4 {[%clk 0:02:11]}  Nd5 {[%clk 0:01:26]} 26. Qf6+ {[%clk 0:02:09]}  Nxf6 {[%clk 0:01:15]} 27. exf6+ {[%clk 0:02:10]}  Kf7 {[%clk 0:01:15]} 28. fxe7 {[%clk 0:02:10]}  Kxe7 {[%clk 0:01:16]} 29. Rxd7+ {[%clk 0:02:10]}  Kxd7 {[%clk 0:01:16]} 30. Nf6+ {[%clk 0:02:11]}  Ke7 {[%clk 0:01:16]} 31. Nxh5 {[%clk 0:02:12]} 1-0


[Site "https://www.chess.com"]

[Event "Titled Tuesday Blitz May 31 Early 2022"]
[White "Zhigalko, Sergei"]
[Black "Przybylski, Wojciech"]
[WhiteFideId "13502956"]
[BlackFideId "1117599"]
[WhiteElo "2662"]
[BlackElo "2133"]
[Result "1-0"]
[Round "01"]
[TimeControl "180+1"]
[Date "2022.05.31"]
[WhiteClock "0:00:05"]
[BlackClock "0:00:03"]

1. e4 {[%clk 0:02:56]}  e5 {[%clk 0:02:58]} 2. Nf3 {[%clk 0:02:56]}  Nf6 {[%clk 0:02:56]} 3. d4 {[%clk 0:02:55]}  Nxe4 {[%clk 0:02:55]} 4. Bd3 {[%clk 0:02:55]}  d5 {[%clk 0:02:54]} 5. Nxe5 {[%clk 0:02:55]}  Nd7 {[%clk 0:02:54]} 6. Nxd7 {[%clk 0:02:55]}  Bxd7 {[%clk 0:02:53]} 7. O-O {[%clk 0:02:55]}  Bd6 {[%clk 0:02:52]} 8. c4 {[%clk 0:02:55]}  c6 {[%clk 0:02:52]} 9. Nc3 {[%clk 0:02:51]}  Nxc3 {[%clk 0:02:50]} 10. bxc3 {[%clk 0:02:51]}  O-O {[%clk 0:02:49]} 11. Qf3 {[%clk 0:02:41]}  dxc4 {[%clk 0:02:40]} 12. Bxc4 {[%clk 0:02:41]}  Qh4 {[%clk 0:02:39]} 13. h3 {[%clk 0:02:40]}  Rae8 {[%clk 0:02:25]} 14. Rb1 {[%clk 0:02:30]}  b5 {[%clk 0:02:12]} 15. Bd3 {[%clk 0:02:21]}  a6 {[%clk 0:02:12]} 16. a4 {[%clk 0:02:15]}  Re6 {[%clk 0:02:01]} 17. axb5 {[%clk 0:02:14]}  axb5 {[%clk 0:01:41]} 18. d5 {[%clk 0:01:34]}  Rf6 {[%clk 0:01:32]} 19. Qe4 {[%clk 0:01:26]}  Qxe4 {[%clk 0:01:26]} 20. Bxe4 {[%clk 0:01:26]}  cxd5 {[%clk 0:01:27]} 21. Bxd5 {[%clk 0:01:25]}  Be5 {[%clk 0:01:26]} 22. c4 {[%clk 0:00:49]}  bxc4 {[%clk 0:01:26]} 23. Bxc4 {[%clk 0:00:49]}  h6 {[%clk 0:01:24]} 24. Rd1 {[%clk 0:00:40]}  Be6 {[%clk 0:01:24]} 25. Bd3 {[%clk 0:00:31]}  Bf5 {[%clk 0:01:12]} 26. Be3 {[%clk 0:00:25]}  Bxd3 {[%clk 0:01:04]} 27. Rxd3 {[%clk 0:00:25]}  Re6 {[%clk 0:00:59]} 28. g3 {[%clk 0:00:23]}  h5 {[%clk 0:00:57]} 29. Kg2 {[%clk 0:00:22]}  g6 {[%clk 0:00:56]} 30. Rb7 {[%clk 0:00:21]}  Rd6 {[%clk 0:00:47]} 31. Ra3 {[%clk 0:00:18]}  Bd4 {[%clk 0:00:46]} 32. Rd3 {[%clk 0:00:12]}  Be5 {[%clk 0:00:45]} 33. Rdb3 {[%clk 0:00:10]}  Bd4 {[%clk 0:00:45]} 34. Bf4 {[%clk 0:00:10]}  Re6 {[%clk 0:00:43]} 35. Rd7 {[%clk 0:00:09]}  Be5 {[%clk 0:00:41]} 36. Bh6 {[%clk 0:00:08]}  Bg7 {[%clk 0:00:40]} 37. Be3 {[%clk 0:00:07]}  Be5 {[%clk 0:00:16]} 38. Rbb7 {[%clk 0:00:07]}  Rd6 {[%clk 0:00:15]} 39. Re7 {[%clk 0:00:07]}  Bf6 {[%clk 0:00:14]} 40. Rec7 {[%clk 0:00:07]}  Bd8 {[%clk 0:00:14]} 41. Rc8 {[%clk 0:00:06]}  Be7 {[%clk 0:00:11]} 42. Rcc7 {[%clk 0:00:05]}  Bd8 {[%clk 0:00:11]} 43. Rc8 {[%clk 0:00:05]}  Be7 {[%clk 0:00:12]} 44. Rc4 {[%clk 0:00:06]}  Re6 {[%clk 0:00:11]} 45. Rcc7 {[%clk 0:00:03]}  Bd6 {[%clk 0:00:08]} 46. Rd7 {[%clk 0:00:04]}  Rf6 {[%clk 0:00:03]} 47. Bg5 {[%clk 0:00:03]}  Re6 {[%clk 0:00:03]} 48. Bh6 {[%clk 0:00:03]}  Rfe8 {[%clk 0:00:01]} 49. Rxf7 {[%clk 0:00:04]}  Be5 {[%clk 0:00:02]} 50. Rfd7 {[%clk 0:00:04]}  Bf6 {[%clk 0:00:02]} 51. Be3 {[%clk 0:00:04]}  Re5 {[%clk 0:00:02]} 52. Rd6 {[%clk 0:00:04]}  R5e6 {[%clk 0:00:03]} 53. Rdd7 {[%clk 0:00:03]}  Re5 {[%clk 0:00:03]} 54. Bf4 {[%clk 0:00:04]}  R5e6 {[%clk 0:00:03]} 55. Rb5 {[%clk 0:00:04]}  R6e7 {[%clk 0:00:03]} 56. Rbd5 {[%clk 0:00:04]}  Rxd7 {[%clk 0:00:04]} 57. Rxd7 {[%clk 0:00:05]}  Re7 {[%clk 0:00:04]} 58. Rd6 {[%clk 0:00:06]}  Kf7 {[%clk 0:00:05]} 59. h4 {[%clk 0:00:06]}  Rb7 {[%clk 0:00:05]} 60. Rc6 {[%clk 0:00:06]}  Rd7 {[%clk 0:00:05]} 61. Be3 {[%clk 0:00:06]}  Rb7 {[%clk 0:00:05]} 62. Kf3 {[%clk 0:00:06]}  Rb3 {[%clk 0:00:04]} 63. Kg2 {[%clk 0:00:06]}  Rb2 {[%clk 0:00:03]} 64. Rxf6+ {[%clk 0:00:05]} 1-0


[Site "https://www.chess.com"]